bitfinex-derivatives/quotes_ETHF0:USTF0_20250330
["timestamp","ask_amount","ask_price","bid_price","bid_amount"]
[1743301746192,2.06227283,1836.4,1836.3,2.54155]
[1743301751001,3.15170283,1836.4,1836.1,3.21597283]
[1743301751197,1.4795,1836.3,1836.2,2.54457]
[1743301752297,1.4795,1836.3,1836.2,3.27177]
[1743301757007,1.4795,1836.3,1836.2,3.81657]
[1743301757200,1.4795,1836.3,1836.2,3.27177]
[1743301757703,0.00817283,1836.4,1836.3,1.08945]
[1743301758005,0.00817283,1836.4,1836.3,9.90505]
[1743301770114,0.00817283,1836.4,1836.3,6.69725]
[1743301770311,0.00817283,1836.4,1836.3,9.90505]
[1743301776116,0.00817283,1836.4,1836.3,7.24205]
[1743301776314,0.00817283,1836.4,1836.3,10.44985]
[1743301776614,0.00817283,1836.4,1836.3,12.94985]
[1743301776804,0.00817283,1836.4,1836.3,18.89266215]
[1743301779516,2.83e-06,1836.4,1836.3,18.89266215]
[1743301779709,2.83e-06,1836.4,1836.3,25.84679046]
[1743301780905,2.83e-06,1836.4,1836.3,26.39129046]
[1743301787815,2.83e-06,1836.4,1836.3,20.37129046]
[1743301788013,2.83e-06,1836.4,1836.3,17.94647831]
[1743301789914,2.83e-06,1836.4,1836.3,17.40197831]
[1743301792003,2.83e-06,1836.4,1836.3,23.56428395]
[1743301794212,0.69220283,1836.4,1836.3,23.56428395]
[1743301796017,0.69220283,1836.4,1836.3,23.01948395]
[1743301796418,0.69220283,1836.4,1836.3,23.56428395]
[1743301801718,0.69220283,1836.4,1836.3,8.36005]
[1743301804926,0.69220283,1836.4,1836.3,6.6439]
[1743301805423,0.69220283,1836.4,1836.3,3.1259]
[1743301805622,3.19220283,1836.4,1836.3,2.03645]
[1743301805814,3.19220283,1836.4,1836.3,0.90595]
[1743301806015,4.60410283,1836.4,1836.3,0.90595]
[1743301807120,4.60410283,1836.4,1836.3,1.9954]
[1743301807714,4.60410283,1836.4,1836.3,1.08945]
[1743301807922,4.60410283,1836.4,1836.3,4.29725]
[1743301809516,4.60410283,1836.4,1836.3,1.08945]
[1743301810120,4.60410283,1836.4,1836.1,0.00817283]
[1743301810323,1.4496,1836.3,1836.1,0.00817283]
[1743301810620,1.4496,1836.3,1836.2,1.08951]
[1743301811015,3.9496,1836.3,1836.2,1.08951]
[1743301811616,5.03907,1836.3,1836.1,1.09769283]
[1743301811921,1.4496,1836.2,1836.1,1.09769283]
[1743301812321,3.9496,1836.2,1836.1,0.00817283]
[1743301813120,5.03911,1836.2,1836.1,0.00817283]
[1743301813528,7.1574,1836.2,1835.8,3.519]
[1743301813828,7.1574,1836.2,1835.8,1.0897]
[1743301813829,1.08964,1836.0,1835.8,1.0897]
[1743301814018,1.4955,1835.9,1835.8,1.0897]
[1743301815027,2.58518,1835.9,1835.7,4.85052283]
[1743301815231,1.84054,1835.8,1835.7,0.00817283]
[1743301815413,3.33604,1835.8,1835.7,0.00817283]
[1743301816619,2.2463,1835.8,1835.7,0.00817283]
[1743301816827,3.33604,1835.8,1835.7,0.00817283]
[1743301818020,1.08986,1835.6,1835.5,3.2078]
[1743301818222,1.08998,1835.4,1835.3,3.519]
[1743301818530,1.08998,1835.4,1835.1,6.84561]
[1743301818718,2.0402,1835.3,1835.2,1.0901]
[1743301819226,2.0402,1835.3,1835.1,6.84562]
[1743301819431,1.3609,1835.2,1835.1,5.7555]
[1743301819628,1.3609,1835.2,1835.0,5.57578]
[1743301819818,2.45104,1835.2,1834.9,2.51004]
[1743301820024,2.45102,1835.2,1834.9,1.4198]
[1743301820317,2.45106,1835.1,1834.9,2.51004]
[1743301820522,1.3609,1835.0,1834.9,2.51004]
[1743301820722,1.3609,1835.0,1834.8,8.2118]
[1743301820723,1.3609,1835.0,1834.8,9.3021]
[1743301820926,1.3609,1835.0,1834.9,1.09028]
[1743301821332,1.3609,1835.0,1834.9,2.51008]
[1743301822016,1.3609,1835.0,1834.9,1.4198]
[1743301823328,2.45112,1835.0,1834.8,5.004]
[1743301823528,2.45112,1835.0,1834.8,2.177]
[1743301823529,3.2078,1834.9,1834.8,2.177]
[1743301823829,5.2947,1834.9,1834.8,2.177]
[1743301824923,5.2947,1834.9,1834.6,0.5456]
[1743301825126,1.4257,1834.8,1834.4,6.6806]
[1743301825325,1.4257,1834.8,1834.5,1.4509]
[1743301825534,2.51605,1834.8,1834.5,2.54138]
[1743301825921,1.4257,1834.7,1834.5,2.54138]
[1743301826229,4.6335,1834.7,1834.5,1.4509]
[1743301826432,5.72391,1834.7,1834.5,1.4509]
[1743301826634,1.4257,1834.6,1834.4,4.9963]
[1743301827026,1.4257,1834.6,1834.4,6.08684]
[1743301827333,3.2078,1834.5,1834.2,0.5456]
[1743301827633,1.4257,1834.4,1834.3,1.09061]
[1743301827932,1.4257,1834.4,1834.3,2.44891]
[1743301828529,1.4257,1834.4,1834.3,1.09061]
[1743301828729,1.4257,1834.4,1834.3,1.09063]
[1743301829329,1.4257,1834.4,1834.3,2.44893]
[1743301829937,3.9257,1834.4,1833.9,6.48052]
[1743301830137,3.2078,1834.3,1834.2,1.09065]
[1743301830439,4.60367283,1834.3,1834.2,2.44895]
[1743301830734,4.60367283,1834.3,1834.2,1.3583]
[1743301831234,5.69430283,1834.3,1834.2,1.3583]
[1743301831437,4.60367283,1834.3,1834.2,1.3583]
[1743301831739,4.60367283,1834.3,1834.2,2.44899]
[1743301832040,4.60367283,1834.3,1834.2,1.3583]
[1743301832933,0.00817283,1834.3,1834.2,2.44899]
[1743301833537,3.2078,1834.5,1834.4,1.09058]
[1743301834241,1.4103,1834.6,1834.5,1.09052]
[1743301834441,4.6181,1834.6,1834.3,1.4524]
[1743301834645,4.6181,1834.6,1834.5,1.09052]
[1743301834936,0.00817283,1834.7,1834.4,3.52917283]
[1743301835142,0.00817283,1834.7,1834.6,1.09046]
[1743301835641,0.00817283,1834.7,1834.6,2.55906]
[1743301836043,0.00817283,1834.7,1834.6,3.10466]
[1743301836244,0.00817283,1834.7,1834.6,2.55906]
[1743301836440,0.00817283,1834.7,1834.6,3.10466]
[1743301838140,0.00817283,1834.7,1834.6,3.83146]
[1743301838537,0.00817283,1834.7,1834.6,2.1954]
[1743301838735,3.21597283,1834.7,1834.6,2.1954]
[1743301839144,4.69657283,1834.7,1834.6,3.28586]
[1743301839344,4.69657283,1834.7,1834.6,2.1954]
[1743301839744,5.78697283,1834.7,1834.6,2.1954]
[1743301839942,4.69657283,1834.7,1834.6,3.28586]
[1743301841145,1.48877283,1834.7,1834.6,3.28586]
[1743301842046,0.00817283,1834.7,1834.6,3.28586]
[1743301844251,0.00817283,1834.7,1834.6,6.80786]
[1743301847248,3.2078,1834.8,1834.6,5.7174]
[1743301847451,3.2078,1834.8,1834.7,1.0904]
[1743301847652,3.2078,1834.8,1834.7,2.5741]
[1743301848055,5.73794,1835.2,1834.9,1.09025]
[1743301848255,1.44,1835.1,1835.0,2.1743]
[1743301848458,1.44,1835.1,1835.0,0.6906]
[1743301848759,1.44,1835.1,1835.0,1.78082]
[1743301849459,3.21597283,1835.2,1835.1,1.09016]
[1743301850553,3.21597283,1835.2,1835.1,1.78256]
[1743301850757,0.00817283,1835.2,1835.1,1.78256]
[1743301852058,3.21597283,1835.2,1835.1,1.78256]
[1743301852551,3.21597283,1835.2,1835.0,0.6906]
[1743301852752,1.5025,1835.1,1835.0,1.78082]
[1743301855260,1.5025,1835.1,1835.0,1.09022]
[1743301855557,2.2262,1835.1,1834.8,4.9258]
[1743301855759,3.2078,1835.0,1834.9,1.09023]
[1743301855960,4.5753,1835.0,1834.9,1.09023]
[1743301856161,5.66552,1835.0,1834.8,2.4951]
[1743301856458,1.3675,1834.9,1834.8,2.4951]
[1743301857059,3.2078,1835.0,1834.9,1.09028]
[1743301857260,4.5753,1835.0,1834.9,1.09028]
[1743301857962,1.3675,1835.0,1834.9,1.09028]
[1743301858567,3.21597283,1835.2,1834.8,1.4048]
[1743301858769,3.21597283,1835.2,1835.1,1.09016]
[1743301859363,4.65767283,1835.2,1835.1,1.09016]
[1743301859566,5.74777283,1835.2,1835.1,1.09016]
[1743301859764,6.43957283,1835.2,1835.0,1.09018]
[1743301859959,1.4417,1835.1,1835.0,1.09018]
[1743301862169,2.53188,1835.1,1834.8,1.4048]
[1743301862461,1.4417,1835.1,1835.0,1.09022]
[1743301862662,2.53186,1835.1,1834.8,1.4048]
[1743301862867,2.53186,1835.1,1834.9,1.09028]
[1743301863067,1.397,1835.0,1834.9,1.09028]
[1743301864861,4.99790283,1835.2,1835.1,1.09016]
[1743301864862,3.21597283,1835.2,1835.1,1.09016]
[1743301865171,1.41157283,1835.2,1835.1,1.09016]
[1743301865565,1.41157283,1835.2,1835.1,3.98826]
[1743301865771,4.61937283,1835.2,1835.1,3.98826]
[1743301869975,1.41157283,1835.2,1835.1,3.98826]
[1743301870375,0.00817283,1835.2,1835.1,3.98826]
[1743301874570,3.2078,1835.6,1835.1,4.42823535]
[1743301874876,3.2078,1835.6,1835.5,1.08992]
[1743301875475,3.2078,1835.6,1835.5,2.59692]
[1743301878374,3.2078,1835.6,1835.4,1.09811283]
[1743301878578,2.1683,1835.5,1835.4,1.09811283]
[1743301878880,2.1683,1835.5,1835.4,2.58881283]
[1743301880578,1.421,1835.5,1835.4,2.58881283]
[1743301882276,3.2078,1835.6,1835.5,1.08992]
[1743301882482,3.2078,1835.6,1835.5,3.20402]
[1743301883979,1.45537283,1835.7,1835.6,1.08986]
[1743301884279,1.45537283,1835.7,1835.6,6.67476]
[1743301888386,4.66317283,1835.7,1835.6,1.08986]
[1743301888687,4.66317283,1835.7,1835.5,3.2144]
[1743301888886,1.3724,1835.6,1835.5,2.5264]
[1743301889188,2.8304,1835.6,1835.5,2.5264]
[1743301890488,2.1102,1835.6,1835.5,2.5264]
[1743301891183,2.1102,1835.6,1835.4,4.61812283]
[1743301891386,1.3724,1835.5,1835.4,4.61812283]
[1743301891690,1.3724,1835.5,1835.4,6.02392283]
[1743301893088,5.67012,1835.5,1835.4,0.00817283]
[1743301894186,5.67012,1835.5,1835.4,1.09815283]
[1743301894384,4.5802,1835.5,1835.4,1.09815283]
[1743301895390,5.67012,1835.5,1835.4,0.00817283]
[1743301897091,4.5802,1835.5,1835.4,1.09815283]
[1743301897290,5.67012,1835.5,1835.4,0.00817283]
[1743301899991,4.5802,1835.5,1835.4,0.00817283]
[1743301900195,5.67012,1835.5,1835.4,0.00817283]
[1743301900493,5.67012,1835.5,1835.4,1.37417283]
[1743301901389,5.67012,1835.5,1835.4,0.00817283]
[1743301903590,1.0901,1835.2,1835.1,1.09014]
[1743301903795,1.0901,1835.2,1835.1,2.46404]
[1743301904293,3.27849,1835.3,1835.2,1.0901]
[1743301904499,2.1884,1835.3,1835.1,1.09014]
[1743301904794,1.4435,1835.2,1835.1,1.09014]
[1743301904995,1.4435,1835.2,1835.1,2.45264]
[1743301905593,2.5336,1835.2,1835.1,1.3625]
[1743301906191,5.7414,1835.2,1835.1,1.3625]
[1743301906391,4.6513,1835.2,1835.0,1.09839283]
[1743301906700,1.4435,1835.1,1835.0,2.46089283]
[1743301907290,2.53366,1835.1,1835.0,2.46089283]
[1743301907491,2.53366,1835.1,1835.0,1.37067283]
[1743301908395,2.53366,1835.1,1835.0,2.46089283]
[1743301908593,1.4435,1835.1,1835.0,1.37067283]
[1743301908802,2.53366,1835.1,1835.0,1.37067283]
[1743301909294,1.4435,1835.1,1835.0,2.46089283]
[1743301909592,0.7309,1835.4,1835.3,1.08999]
[1743301909593,3.2078,1835.4,1835.3,1.08999]
[1743301910500,4.29778,1835.4,1835.3,1.08999]
[1743301910697,4.29778,1835.4,1835.3,2.48669]
[1743301910897,3.2078,1835.4,1835.3,2.48669]
[1743301911691,0.7428,1835.6,1835.3,1.3967]
[1743301911692,3.2078,1835.6,1835.3,1.3967]
[1743301911888,3.2078,1835.6,1835.5,1.08992]
[1743301912497,3.2078,1835.6,1835.5,1.79772]
[1743301912700,0.00817283,1835.7,1835.6,1.08986]
[1743301912999,0.00817283,1835.7,1835.6,3.19106]
[1743301913386,0.00817283,1835.7,1835.6,1.08986]
[1743301913599,2.56697283,1835.7,1835.6,2.46796]
[1743301913788,1.47717283,1835.7,1835.6,2.46796]
[1743301914200,1.47717283,1835.7,1835.6,1.3781]
[1743301914593,1.47717283,1835.7,1835.6,2.46796]
[1743301915502,0.00817283,1835.7,1835.6,2.46796]
[1743301921703,0.00817283,1835.7,1835.6,1.3781]
[1743301921903,1.41247283,1835.7,1835.6,2.46796]
[1743301925311,0.00817283,1835.7,1835.6,2.46796]
[1743301927213,1.4676,1835.9,1835.6,2.46796]
[1743301927214,3.2078,1836.4,1836.3,1.08945]
[1743301927415,4.6754,1836.4,1836.3,1.08945]
[1743301929113,1.4676,1836.4,1836.3,1.08945]
[1743301930317,1.4676,1836.4,1836.3,2.49135]
[1743301930918,0.00817283,1836.5,1836.4,1.08939]
[1743301931112,0.00817283,1836.5,1836.4,3.30259]
[1743301931417,1.40487283,1836.5,1836.4,3.30259]
[1743301932818,0.00817283,1836.5,1836.4,3.30259]
[1743301936021,0.00817283,1836.5,1836.4,3.84739]
[1743301936819,0.00817283,1836.5,1836.4,3.30259]
[1743301937017,0.00817283,1836.5,1836.4,3.84739]
[1743301937417,0.00817283,1836.5,1836.4,6.82059]
[1743301942323,1.47057283,1836.5,1836.4,6.82059]
[1743301943425,0.00817283,1836.5,1836.4,6.82059]
[1743301943823,3.2078,1836.8,1836.7,1.08921]
[1743301944021,4.698,1836.8,1836.7,1.08921]
[1743301944724,1.4902,1836.8,1836.7,2.51931]
[1743301945019,0.00817283,1836.9,1836.8,1.08915]
[1743301945226,0.00817283,1836.9,1836.8,2.51925]
[1743301950331,1.47597283,1836.9,1836.8,2.51925]
[1743301951026,2.16917283,1836.9,1836.8,1.08915]
[1743301951232,2.91397283,1836.9,1836.8,1.08915]
[1743301952033,2.91397283,1836.9,1836.8,2.47205]
[1743301953530,2.91397283,1836.9,1836.8,1.08915]
[1743301954326,2.91397283,1836.9,1836.8,2.57645]
[1743301956433,1.47597283,1836.9,1836.8,2.57645]
[1743301957632,0.00817283,1836.9,1836.8,2.57645]
[1743301958132,1.49497283,1836.9,1836.8,2.57645]
[1743301962239,0.00817283,1836.9,1836.8,2.57645]
[1743301962938,5.838,1837.4,1837.3,1.08885]
[1743301962939,10.4364,1837.4,1837.3,1.08885]
[1743301963141,3.2078,1837.4,1837.3,1.08885]
[1743301963641,3.2078,1837.6,1837.5,1.08871]
[1743301964332,4.6478,1837.6,1837.5,2.51411]
[1743301964734,4.6478,1837.6,1837.5,2.51414]
[1743301966039,1.44,1837.6,1837.5,2.51414]
[1743301967632,4.6478,1837.6,1837.5,2.51414]
[1743301968737,4.6478,1837.6,1837.5,1.08874]
[1743301971143,4.6478,1837.6,1837.5,2.56374]
[1743301972647,5.73648,1837.6,1837.5,2.56374]
[1743301973442,4.6478,1837.6,1837.5,2.56374]
[1743301973745,5.73648,1837.6,1837.5,2.56374]
[1743301975147,4.6478,1837.6,1837.5,2.56374]
[1743301976845,3.2078,1837.6,1837.5,2.56374]
[1743301977056,0.00817283,1837.7,1837.6,1.08868]
[1743301977241,1.4331,1838.1,1838.0,1.08844]
[1743301977946,1.4331,1838.1,1838.0,2.50484]
[1743301982142,2.52148,1838.1,1837.9,1.08846]
[1743301982346,3.27528,1838.1,1837.9,1.08846]
[1743301982544,3.27528,1838.1,1837.9,2.54326]
[1743301982545,1.4291,1838.0,1837.9,2.54326]
[1743301985151,2.51754,1838.0,1837.9,2.5433]
[1743301985352,1.4291,1838.0,1837.9,2.5433]
[1743301986545,2.51754,1838.0,1837.9,2.5433]
[1743301986753,2.51754,1838.0,1837.8,5.28194]
[1743301986952,1.364,1837.9,1837.8,4.60254]
[1743301987451,1.364,1837.9,1837.8,6.03024]
[1743301991748,1.364,1837.9,1837.8,9.23804]
[1743301994346,2.4525,1837.9,1837.8,8.1495]
[1743301994746,1.364,1837.9,1837.8,8.1495]
[1743301995154,1.364,1837.9,1837.8,9.23806]
[1743301997756,1.8422,1838.1,1837.9,1.08845]
[1743301997950,1.4076,1838.1,1838.0,0.7504]
[1743301998151,0.00537588,1838.2,1838.0,0.7504]
[1743301998350,1.41297588,1838.2,1838.1,1.08838]
[1743301998650,1.41297588,1838.2,1838.1,2.44698]
[1743302000056,0.00537588,1838.2,1838.1,2.44698]
[1743302000361,1.41297588,1838.2,1838.1,2.44698]
[1743302004562,2.50129588,1838.2,1838.1,2.44698]
[1743302005658,2.50129588,1838.2,1838.1,1.3586]
[1743302005857,4.62077588,1838.2,1837.9,0.7135]
[1743302006064,3.2867,1838.1,1837.9,0.7135]
[1743302006362,3.2867,1838.1,1838.0,1.3739]
[1743302006555,1.787,1838.1,1838.0,1.3739]
[1743302007356,1.0884,1838.1,1838.0,1.3739]
[1743302008667,1.0884,1838.1,1838.0,2.46234]
[1743302008968,0.00537588,1838.2,1838.0,1.3739]
[1743302009170,1.09369588,1838.2,1838.1,1.4037]
[1743302014075,1.09369588,1838.2,1837.9,0.7135]
[1743302014076,1.08844,1838.0,1837.9,0.7135]
[1743302014279,1.08844,1838.0,1837.9,2.1679]
[1743302014473,1.08844,1838.0,1837.9,3.2564]
[1743302016476,0.00537588,1838.2,1837.9,2.1679]
[1743302016666,1.08838,1838.1,1838.0,2.1995]
[1743302016872,1.08838,1838.1,1838.0,3.28788]
[1743302017164,1.08838,1838.1,1838.0,2.1995]
[1743302017371,0.00537588,1838.2,1838.0,3.2879]
[1743302017568,1.09369588,1838.2,1838.1,1.4516]
[1743302021088,1.08838,1838.1,1838.0,0.7479]
[1743302021290,1.08838,1838.1,1838.0,2.2309]
[1743302025485,2.51668,1838.1,1838.0,2.2309]
[1743302028084,0.00537588,1838.2,1838.1,1.08838]
[1743302028281,0.00537588,1838.2,1838.1,2.46408]
[1743302028686,0.00537588,1838.2,1838.1,5.97708]
[1743302031091,1.09369588,1838.2,1838.1,5.97708]
[1743302031289,1.09369588,1838.2,1838.1,4.8887]
[1743302033184,1.09369588,1838.2,1838.1,5.97708]
[1743302033797,1.09369588,1838.2,1838.1,4.8887]
[1743302034300,0.00537588,1838.2,1838.1,5.97708]
[1743302035193,0.00537588,1838.2,1837.9,0.7135]
[1743302035395,1.0885,1837.9,1837.8,2.1899]
[1743302038997,1.08862,1837.7,1837.6,4.2463]
[1743302039197,1.08862,1837.7,1837.6,6.3301]
[1743302040798,1.08862,1837.7,1837.6,2.8181]
[1743302041495,2.5115,1837.8,1837.6,3.90675]
[1743302041800,1.4229,1837.8,1837.7,2.46182]
[1743302042002,2.51146,1837.8,1837.7,1.3732]
[1743302042899,1.08862,1837.7,1837.6,1.4434]
[1743302043101,2.57832,1837.7,1837.6,2.8166]
[1743302047009,2.57832,1837.7,1837.6,1.3732]
[1743302062113,5.00065,1837.9,1837.6,1.3732]
[1743302062308,5.66384,1837.9,1837.6,1.3732]
[1743302062513,4.5753,1837.9,1837.8,1.08856]
[1743302062715,1.08857,1837.8,1837.7,1.0886]
[1743302063214,1.08862,1837.7,1837.6,2.46184]
[1743302064514,1.08859,1837.8,1837.6,1.3732]
[1743302065117,1.08859,1837.8,1837.7,1.08862]
[1743302066022,1.08859,1837.8,1837.6,2.46183]
[1743302066523,1.08859,1837.8,1837.7,1.3661]
[1743302067121,4.5753,1837.9,1837.7,2.45472]
[1743302067319,5.6638,1837.9,1837.8,0.7316]
[1743302067519,5.6638,1837.9,1837.8,2.7845]
[1743302067926,10.87962,1838.1,1837.8,2.7845]
[1743302068121,1.08844,1838.0,1837.9,2.56217]
[1743302068321,6.45242,1838.1,1837.9,2.56217]
[1743302068521,6.45242,1838.1,1838.0,1.4737]
[1743302068721,3.24462,1838.1,1838.0,1.4737]
[1743302070627,1.4108,1838.1,1838.0,1.4737]
[1743302070828,2.49918,1838.1,1838.0,2.56214]
[1743302071029,2.49918,1838.1,1838.0,1.4737]
[1743302071432,1.4108,1838.1,1838.0,2.56214]
[1743302071727,1.09371588,1838.2,1838.0,2.56208]
[1743302072033,2.52361588,1838.2,1838.1,2.2571]
[1743302072223,2.52361588,1838.2,1838.1,2.9511]
[1743302072624,2.52361588,1838.2,1838.1,2.2571]
[1743302073623,2.52361588,1838.2,1838.1,3.34548]
[1743302073825,2.52361588,1838.2,1838.1,2.2571]
[1743302074024,2.52361588,1838.2,1838.1,3.34548]
[1743302074731,2.52361588,1838.2,1838.1,2.2571]
[1743302075830,2.52361588,1838.2,1838.1,3.34548]
[1743302076728,1.43527588,1838.2,1838.1,3.34548]
[1743302081932,0.00537588,1838.2,1838.1,3.34548]
[1743302087539,1.4526,1838.6,1838.5,1.08814]
[1743302088437,1.4526,1838.6,1838.5,2.50064]
[1743302090842,1.4526,1838.6,1838.5,3.21394]
[1743302093644,1.08804,1838.7,1838.6,1.08808]
[1743302093833,2.57294,1838.7,1838.6,2.45608]
[1743302096142,2.57294,1838.7,1838.6,1.368]
[1743302096340,1.08808,1838.6,1838.4,5.29765283]
[1743302096645,1.08808,1838.6,1838.4,6.79455283]
[1743302096646,2.50278,1838.6,1838.4,6.79455283]
[1743302096941,2.50278,1838.6,1838.5,1.4969]
[1743302097143,1.4066,1838.8,1838.5,2.58504]
[1743302097338,1.08807,1838.7,1838.5,2.58504]
[1743302097545,1.08802,1838.7,1838.6,1.4969]
[1743302098042,1.08801,1838.8,1838.6,2.58495]
[1743302098240,1.08801,1838.8,1838.7,0.6874]
[1743302098436,1.08801,1838.8,1838.7,2.0663]
[1743302101050,1.08801,1838.8,1838.4,0.00817283]
[1743302101051,1.08814,1838.5,1838.4,0.00817283]
[1743302101545,1.4403,1838.7,1838.4,2.51047283]
[1743302101745,1.4403,1838.7,1838.5,1.4141]
[1743302101950,1.08808,1838.6,1838.5,1.4141]
[1743302102250,6.7178,1838.9,1838.5,2.50221]
[1743302102452,1.08807,1838.7,1838.6,0.708]
[1743302103539,1.088,1838.8,1838.6,1.79608]
[1743302103749,1.088,1838.8,1838.6,0.708]
[1743302103951,3.2078,1838.9,1838.6,0.708]
[1743302103952,1.08802,1838.7,1838.6,0.708]
[1743302105049,1.08802,1838.7,1838.6,1.79608]
[1743302105353,1.08802,1838.7,1838.6,0.708]
[1743302105652,1.08801,1838.8,1838.6,1.79608]
[1743302105953,1.08802,1838.7,1838.6,0.708]
[1743302110955,1.08808,1838.6,1838.5,4.2311]
[1743302112256,1.08814,1838.5,1838.4,0.00817283]
[1743302112451,2.53474,1838.5,1838.4,0.00817283]
[1743302113545,1.82704,1838.5,1838.4,0.00817283]
[1743302116258,1.82704,1838.5,1838.4,1.38597283]
[1743302118665,1.08832,1838.2,1838.1,3.2078]
[1743302118959,1.08832,1838.2,1838.1,6.7168]
[1743302119354,1.08832,1838.2,1838.1,8.0843]
[1743302120860,1.08832,1838.2,1838.1,9.17268]
[1743302121361,2.59646283,1838.3,1838.1,9.17268]
[1743302121554,2.59646283,1838.3,1838.2,1.3811]
[1743302122556,1.08832,1838.2,1838.1,3.509]
[1743302122853,2.56762,1838.2,1838.1,4.8901]
[1743302124961,2.56762,1838.2,1838.1,1.3811]
[1743302126056,2.56762,1838.2,1837.9,4.29626]
[1743302126057,1.08868,1837.6,1837.5,3.2078]
[1743302126262,1.08868,1837.6,1837.5,2.0754]
[1743302126654,2.56246,1837.7,1837.5,2.0754]
[1743302126860,1.4738,1837.7,1837.6,1.3651]
[1743302127474,2.56242,1837.7,1837.6,1.3651]
[1743302127763,1.4738,1837.7,1837.6,2.45378]
[1743302127966,2.56242,1837.7,1837.6,1.3651]
[1743302128259,3.2078,1837.8,1837.6,1.3651]
[1743302128466,3.2078,1837.8,1837.7,0.7086]
[1743302128667,4.29636,1837.8,1837.7,0.7086]
[1743302130553,1.08862,1837.7,1837.6,1.3651]
[1743302130757,2.48602,1837.7,1837.6,1.3651]
[1743302131165,3.94392,1837.7,1837.6,1.3651]
[1743302135871,2.48602,1837.7,1837.6,1.3651]
[1743302136670,8.559,1838.1,1837.6,7.59676]
[1743302136671,6.92638,1838.1,1837.6,7.59676]
[1743302136971,0.00817283,1838.3,1837.8,5.92913]
[1743302137271,1.09646283,1838.3,1838.1,1.08836]
[1743302137771,1.09646283,1838.3,1838.2,9.18642]
[1743302137772,0.00817283,1838.3,1838.2,9.18642]
[1743302139473,1.09643283,1838.3,1838.2,8.0981]
[1743302139674,0.00817283,1838.3,1838.2,9.18642]
[1743302139879,1.09643283,1838.3,1838.2,4.8903]
[1743302141171,0.00817283,1838.3,1838.2,5.97862]
[1743302142577,1.09643283,1838.3,1838.2,4.8903]
[1743302142873,0.00817283,1838.3,1838.2,6.70272]
[1743302143083,1.08818,1838.5,1838.3,1.08825]
[1743302143279,1.08818,1838.5,1838.4,1.4378]
[1743302143483,0.7465,1838.8,1838.4,4.6456]
[1743302143785,1.08811,1838.6,1838.4,5.73378]
[1743302144082,1.08811,1838.6,1838.5,1.4378]
[1743302145578,0.00817283,1838.7,1838.5,1.4378]
[1743302145579,0.00817283,1838.7,1838.6,1.08808]
[1743302145772,1.08785,1839.0,1838.8,1.08796]
[1743302145978,1.08785,1839.0,1838.9,0.7112]
[1743302146177,2.45915,1839.1,1838.9,2.8977]
[1743302146375,2.45915,1839.1,1838.9,3.98561]
[1743302146579,4.6055,1839.3,1839.0,1.5048]
[1743302146884,1.08779,1839.1,1839.0,1.5048]
[1743302149783,1.3713,1839.2,1838.9,1.3929]
[1743302150086,1.08785,1839.0,1838.9,1.3929]
[1743302151585,1.08791,1838.9,1838.8,1.4451]
[1743302153991,1.08788,1839.0,1838.8,2.53307]
[1743302154289,1.08788,1839.0,1838.9,1.372]
[1743302157186,1.08797,1838.8,1838.7,3.508]
[1743302158394,1.08788,1839.0,1838.7,3.508]
[1743302158686,3.8973,1839.3,1838.8,3.2078]
[1743302158891,3.8973,1839.3,1839.1,1.08778]
[1743302158892,3.2078,1839.3,1839.1,1.08778]
[1743302159194,4.29547,1839.3,1839.2,1.4699]
[1743302159489,3.9136,1839.5,1839.2,2.9389]
[1743302159787,1.08767,1839.3,1839.2,2.9389]
[1743302159987,1.08765,1839.4,1839.2,2.55763]
[1743302160596,3.9136,1839.5,1839.3,1.08767]
[1743302160895,1.08763,1839.4,1839.2,2.5576]
[1743302161487,1.08766,1839.4,1839.2,2.55763]
[1743302162891,1.08767,1839.3,1839.2,1.4699]
[1743302163989,1.08766,1839.4,1839.2,2.55761]
[1743302164595,1.08767,1839.3,1839.2,1.4699]
[1743302166995,2.50955,1839.4,1839.2,2.55763]
[1743302167188,4.6623,1839.5,1839.2,2.55763]
[1743302167189,3.2078,1839.5,1839.4,1.08761]
[1743302167496,4.29535,1839.5,1839.4,1.08761]
[1743302167796,4.29535,1839.5,1839.3,4.59463]
[1743302168097,3.2078,1839.5,1839.4,1.08761]
[1743302168293,4.29535,1839.5,1839.3,4.59463]
[1743302168498,5.72755,1839.5,1839.3,4.59463]
[1743302168700,4.64,1839.5,1839.3,3.507]
[1743302169091,5.72757,1839.5,1839.3,4.59464]
[1743302170395,1.4322,1839.5,1839.4,1.08761]
[1743302170594,1.08754,1839.6,1839.4,1.08757]
[1743302170801,1.08749,1839.6,1839.5,0.7112]
[1743302171002,2.55939,1839.6,1839.5,1.4063]
[1743302171701,1.4719,1839.6,1839.5,2.49385]
[1743302172401,1.08748,1839.7,1839.5,2.49385]
[1743302174191,2.53429,1839.6,1839.5,1.4063]
[1743302175707,1.08755,1839.5,1839.4,1.43407283]
[1743302175897,2.50545,1839.5,1839.4,6.02768283]
[1743302176205,1.08755,1839.5,1839.4,5.48407283]
[1743302176399,1.08755,1839.5,1839.4,6.90767283]
[1743302176796,1.08755,1839.5,1839.4,6.36367283]
[1743302176997,1.08755,1839.5,1839.4,6.90767283]
[1743302177197,1.08755,1839.5,1839.4,6.36367283]
[1743302177399,1.08755,1839.5,1839.4,6.90767283]
[1743302177599,1.08755,1839.5,1839.4,6.36367283]
[1743302177904,1.08755,1839.5,1839.4,6.90767283]
[1743302178299,1.08755,1839.5,1839.4,6.36367283]
[1743302178502,1.08755,1839.5,1839.4,6.90767283]
[1743302178907,1.08755,1839.5,1839.4,6.36367283]
[1743302179502,2.57145,1839.5,1839.4,6.36367283]
[1743302180209,2.57145,1839.5,1839.4,0.00817283]